Cogmind - Beta 15 @@@ ROGUE MODE // 2025.08.17 @ 12:24:02 Player: WitherScout Result: Destroyed by Y-45 Defender with Beam Rifle Performance ------------- Evolutions (2) 1000 Regions Visited (5) 1000 Robots Destroyed (8) 40 Value Destroyed (76) 76 Prototype IDs (1) 20 Alien Tech Used (0) 0 Bonus (0) 0 TOTAL SCORE: 2136 Bonus ------- None Cogmind --------- Core Integrity 0/550 Matter 184/300 Energy 98/100 System Corruption 0% Temperature Cool (18) Movement Core (50) Location -8/Storage Parts ------- > --- POWER (1) -------- (None) > --- PROPULSION (6) --- (None) > --- UTILITY (2) ------ (None) > --- WEAPON (2) ------- (None) > --- INVENTORY (5) ---- Light Ion Engine ECM Suite Peak State ------------ > --- POWER ------------ Deuterium Engine > --- PROPULSION ------- Flight Unit Improved Flight Unit Cesium-ion Thruster > --- UTILITY ---------- Drone Bay Drone Bay > --- WEAPON ----------- (None) > --- INVENTORY -------- Light Ion Engine ECM Suite Assault Rifle Assault Rifle [Rating: 20] Favorites ----------- Power Light Ion Engine Engine Light Ion Engine Propulsion Flight Unit Flight Unit Flight Unit Utility ECM Suite Device ECM Suite Storage Small Storage Unit Weapon Assault Rifle Ballistic Gun Assault Rifle Build | -11 -10 -10 -9 -8 -8 ------- Run | Yrd Mat Min Mat Mat Sto Slots Evolved 4 | . . . 2 2 . Power . | . . . . . . Propulsion 4 | . . . 2 2 . Utility . | . . . . . . Weapon . | . . . . . . Parts Attached 28 | . 6 1 6 6 9 Power 3 | . 1 . . 2 . Engine 3 | . 1 . . 2 . Core . | . . . . . . Reactor . | . . . . . . Propulsion 12 | . 2 . 4 4 2 Treads . | . . . . . . Leg . | . . . . . . Wheel . | . . . . . . Hover . | . . . . . . Flight 12 | . 2 . 4 4 2 Utility 9 | . 1 1 . . 7 Device 8 | . . 1 . . 7 Storage 1 | . 1 . . . . Processor . | . . . . . . Hackware . | . . . . . . Protection . | . . . . . . Artifact . | . . . . . . Weapon 4 | . 2 . 2 . . Energy Gun . | . . . . . . Energy Cannon . | . . . . . . Ballistic Gun 4 | . 2 . 2 . . Ballistic Cannon . | . . . . . . Launcher . | . . . . . . Special Weapon . | . . . . . . Impact Weapon . | . . . . . . Slashing Weapon . | . . . . . . Piercing Weapon . | . . . . . . Special Melee Weapon . | . . . . . . Unidentified Prototypes 1 | . . . . 1 . Parts Lost 19 | . . . 2 6 11 Power 2 | . . . . 1 1 Propulsion 12 | . . . 2 4 6 Utility 3 | . . . . 1 2 Weapon 2 | . . . . . 2 Highest Loss Streak 7 | . . . 2 6 7 To Critical Strikes . | . . . . . . Average Backups 3 | 3 4 5 3 2 2 Power 1 | 1 2 1 1 1 1 Propulsion . | . . 3 1 . . Utility . | . . . . . 1 Weapon . | 1 1 1 . . . Tool/Special . | . . . . . . Unused Backups 3 | . 1 2 . . . Power 1 | . . 1 . . . Propulsion . | . . . . . . Utility . | . . . . . . Weapon 2 | . 1 1 . . . Tool/Special . | . . . . . . Average Slot Usage (%) 50 | . 37 57 71 66 35 Engine 6 | . 1 14 11 7 3 Flight 28 | . 16 28 39 44 19 Device 7 | . . 8 11 5 9 Ballistic Gun 7 | . 16 . 10 9 3 Peak Build Rating 20 | . 6 5 8 11 20 Average Rating 7 | . 2 4 6 8 10 On Entrance 4 | . . 4 4 7 11 Naked Turns 59 | . 18 . . . 41 Heaviest Build 21 | . 8 10 7 13 21 Greatest Support 24 | 3 8 8 16 24 18 Greatest Overweight (x) 2 | . . 1 . . 2 Average Overweight (x) . | . . . . . . Largest Inventory Capacity 8 | 5 8 8 5 5 5 Average Capacity 5 | 5 5 6 5 5 5 Most Carried 8 | 5 8 8 5 4 5 Average Carried 3 | 3 4 5 3 2 2 Final Capacity 8 | 5 8 5 5 5 5 Final Carried 8 | 5 8 4 5 1 2 Class Distribution -------------------- 66% | Mutant 18% | Scavenger-Sprinter 14% | Sprinter Dominant Class ---------------- Mutant | -10/Materials Mutant | -10/Mines Scavenger-Sprinter | -9/Materials Scavenger-Sprinter | -8/Materials Mutant | -8/Storage Resources | -11 -10 -10 -9 -8 -8 ----------- Run | Yrd Mat Min Mat Mat Sto Matter Collected 460 | 200 74 . 112 . 74 Remotely . | . . . . . . Salvage Created 168 | . 56 . 112 . . Parts 12 | . 6 . 6 . . Haulers Intercepted . | . . . . . . Recyclers Shooed 1 | . . . 1 . . Parts Field Recycled . | . . . . . . Retrieved Matter . | . . . . . . Parts Self-Destructed . | . . . . . . Prevented . | . . . . . . Kills | -11 -10 -10 -9 -8 -8 ------- Run | Yrd Mat Min Mat Mat Sto Combat Hostiles Destroyed 7 | . 4 . 3 . . Guns 7 | . 4 . 3 . . Classes Destroyed 2 | . 1 . 1 . . Recycler 1 | . . . 1 . . Swarmer 7 | . 4 . 3 . . Best Kill Streak 4 | . 2 . 4 . . Combat Bots Only 3 | . 2 . 3 . . Max Kills in Single Turn 1 | . 1 . 1 . . Gunslinging . | . . . . . . Exploded . | . . . . . . Melee . | . . . . . . Uniques/NPCs Destroyed . | . . . . . . Combat | -11 -10 -10 -9 -8 -8 -------- Run | Yrd Mat Min Mat Mat Sto Hostile Shots Fired 268 | . 34 1 42 43 148 Missed 107 | . 15 1 17 19 55 Hits 161 | . 19 . 25 24 93 Projectile 161 | . 19 . 25 24 93 Critical Strikes 8 | . . . . 3 5 Damage Taken 1845 | . 147 . 237 367 1094 Core 689 | . 52 . 76 89 472 Absorbed by Shields . | . . . . . . Core Remaining (%) 86 | 100 . 79 81 . . Volleys Fired 22 | . 12 . 9 . 1 Largest 2 | . 2 . 2 . 1 Hottest 40 | . 40 . 40 . 20 Shots Fired 43 | . 24 . 18 . 1 Gun 43 | . 24 . 18 . 1 Cannon . | . . . . . . Launcher . | . . . . . . Special . | . . . . . . Kinetic 43 | . 24 . 18 . 1 Thermal . | . . . . . . Explosive . | . . . . . . Electromagnetic . | . . . . . . Robot Hit Streak 3 | . 3 . 3 . . Robot Miss Streak 2 | . 2 . 2 . 1 Penetration Max . | . . . . . . Secondary Targets 2 | . 1 . 1 . . Max Gunslinging Chain 1 | . 1 . 1 . . Shots Hit Robots 24 | . 13 . 11 . . Core Hits 9 | . 4 . 5 . . Critical Kills . | . . . . . . Critical Parts Destroyed 1 | . 1 . . . . Critical Strikes 1 | . 1 . . . . Destroy 1 | . 1 . . . . Melee Attacks . | . . . . . . Impact . | . . . . . . Slashing . | . . . . . . Piercing . | . . . . . . Sneak Attacks . | . . . . . . Combat Hostiles . | . . . . . . Follow-up Attacks . | . . . . . . Damage Inflicted 295 | . 148 . 140 . 7 Guns 288 | . 148 . 140 . . Cannons . | . . . . . . Explosions . | . . . . . . Melee . | . . . . . . Ramming 7 | . . . . . 7 Kinetic 288 | . 148 . 140 . . Thermal . | . . . . . . Explosive . | . . . . . . Electromagnetic . | . . . . . . Impact . | . . . . . . Slashing . | . . . . . . Piercing . | . . . . . . Highest Corruption . | . . . . . . Average Corruption . | . . . . . . Corruption Purged . | . . . . . . Corruption Blocked . | . . . . . . Overload Shots . | . . . . . . Overflow Damage . | . . . . . . Projectiles . | . . . . . . Explosions . | . . . . . . Melee . | . . . . . . Knockbacks . | . . . . . . Impact . | . . . . . . Kinetic . | . . . . . . Secondary . | . . . . . . Self-Inflicted Damage 3 | . . . . . 3 Shots . | . . . . . . Rammed 4 | . . . . . 4 Targets Rammed 4 | . . . . . 4 Kicked . | . . . . . . Crushed . | . . . . . . Highest Temperature 30 | . . . 3 30 16 Average Temperature 10 | . . . 2 12 9 Received Heat Transfer 675 | . . . 54 261 360 Siege Activations . | . . . . . . Martial Activations . | . . . . . . Shielding Activations . | . . . . . . Robots Disrupted . | . . . . . . Combat Hostiles . | . . . . . . Robots Corrupted . | . . . . . . Combat Hostiles . | . . . . . . Parts Fried . | . . . . . . Impact Corruptions . | . . . . . . Robots Melted . | . . . . . . Combat Hostiles . | . . . . . . Parts Melted . | . . . . . . Heat Transferred . | . . . . . . Parts Sabotaged . | . . . . . . Parts Stolen . | . . . . . . Parts Stripped . | . . . . . . Power Chain Reactions . | . . . . . . Alert | -11 -10 -10 -9 -8 -8 ------- Run | Yrd Mat Min Mat Mat Sto Maximum Alert Level . | . . . . . . Low Security (%) 100 | 100 100 100 100 100 100 Level 1 . | . . . . . . Level 2 . | . . . . . . Level 3 . | . . . . . . Level 4 . | . . . . . . Level 5 . | . . . . . . High Security . | . . . . . . Max Security . | . . . . . . Peak Influence 128 | . 128 49 45 75 70 Initial 49 | . . 49 7 5 27 Average 20 | . 55 36 22 15 6 Influence Increases 485 | . 158 . 75 115 137 Destroy 0b10 Robot/C 140 | . 80 . 60 . . Destroy 0b10 Robot/NC 5 | . . . 5 . . Destroy Leader 30 | . 20 . 10 . . Successful Hack 40 | . 28 . . 10 2 Partial Spotted 30 | . . . . 30 . Lose Combat Pursuer 240 | . 30 . . 75 135 Influence Decreases 415 | . 30 109 79 65 132 Entered New Map 139 | . . 79 12 10 38 Time Decay 180 | . 30 30 40 35 45 Lost Part 57 | . . . 20 10 27 Lost Ally 22 | . . . . . 22 Purge Threat 17 | . . . 7 10 . Squads Dispatched 5 | . . . 2 2 1 Investigation 2 | . . . 1 1 . Extermination . | . . . . . . Reinforcement 3 | . . . 1 1 1 Assault . | . . . . . . Garrison . | . . . . . . Intercept . | . . . . . . Searches Triggered . | . . . . . . Construction Impeded . | . . . . . . Haulers Reinforced . | . . . . . . Active Scanning Responses . | . . . . . . Cargo Convoy Interrupts . | . . . . . . Stealth | -11 -10 -10 -9 -8 -8 --------- Run | Yrd Mat Min Mat Mat Sto Distress Signals 5 | . . . . 3 2 Communications Jammed . | . . . . . . Distress Signals . | . . . . . . Times Spotted 77 | . 8 2 18 12 37 Peak Tracking Total 11 | . 5 2 10 7 11 Tactical Retreats 13 | . 1 1 2 1 8 Traps | -11 -10 -10 -9 -8 -8 ------- Run | Yrd Mat Min Mat Mat Sto Traps Triggered 2 | . . . . . 2 Indirectly . | . . . . . . Trap Hack Attempts . | . . . . . . Triggered . | . . . . . . Disarmed . | . . . . . . Reprogrammed . | . . . . . . Reused . | . . . . . . Traps Extracted . | . . . . . . Installed . | . . . . . . Triggered . | . . . . . . Machines | -11 -10 -10 -9 -8 -8 ---------- Run | Yrd Mat Min Mat Mat Sto Machines Disabled . | . . . . . . Max in Single Turn . | . . . . . . Machines Repaired . | . . . . . . Machines Dismantled . | . . . . . . Machines Sabotaged . | . . . . . . Overloaded Fab Kills . | . . . . . . Hacking | -11 -10 -10 -9 -8 -8 --------- Run | Yrd Mat Min Mat Mat Sto Machines Accessed 7 | . 2 . 2 2 1 Terminals 7 | . 2 . 2 2 1 Fabricators . | . . . . . . Repair Stations . | . . . . . . Recycling Units . | . . . . . . Scanalyzers . | . . . . . . Garrison Access . | . . . . . . Total Hacks 24 | . 7 . 6 10 1 Successful 12 | . 2 . 2 7 1 Failed 12 | . 5 . 4 3 . Catastrophic 2 | . 2 . . . . Database Lockouts . | . . . . . . Manual 5 | . 4 . . 1 . Terminals 24 | . 7 . 6 10 1 Fabricators . | . . . . . . Repair Stations . | . . . . . . Recycling Units . | . . . . . . Scanalyzers . | . . . . . . Garrison Access . | . . . . . . Terminal Hacks 12 | . 2 . 2 7 1 Record 2 | . . . . 2 . Open Door 1 | . . . . . 1 Branch Access Points 1 | . . . 1 . . Alert Level 1 | . . . . 1 . Unreport Threat 2 | . . . 1 1 . Locate Traps 2 | . 1 . . 1 . Zone Layout 3 | . 1 . . 2 . Fabricator Hacks . | . . . . . . Repair Station Hacks . | . . . . . . Recycling Unit Hacks . | . . . . . . Scanalyzer . | . . . . . . Garrison Access Hacks . | . . . . . . Unauthorized Hacks . | . . . . . . Terminals . | . . . . . . Fabricators . | . . . . . . Repair Stations . | . . . . . . Recycling Units . | . . . . . . Scanalyzers . | . . . . . . Garrison Access . | . . . . . . Data Cores Recovered . | . . . . . . Used . | . . . . . . Hacking Detections 5 | . 2 . 1 2 . Full Trace Events 4 | . 1 . 1 2 . Feedback Events . | . . . . . . Feedback Blocked . | . . . . . . Robot Schematics Acquired . | . . . . . . Robots Built . | . . . . . . Authchips . | . . . . . . Time . | . . . . . . Total Robot Build Rating . | . . . . . . Part Schematics Acquired . | . . . . . . Parts Built . | . . . . . . Authchips . | . . . . . . Time . | . . . . . . Total Part Build Rating . | . . . . . . Parts Repaired . | . . . . . . Time . | . . . . . . Parts Recycled . | . . . . . . Recycled Matter . | . . . . . . Retrieved Matter . | . . . . . . Retrieved Components . | . . . . . . Parts Scanalyzed . | . . . . . . Part Schematics Acquired . | . . . . . . Parts Damaged . | . . . . . . Bothacking | -11 -10 -10 -9 -8 -8 ------------ Run | Yrd Mat Min Mat Mat Sto Used RIF Installer . | . . . . . . Robots Hacked . | . . . . . . Non-combat . | . . . . . . Combat . | . . . . . . Robot Hacks Applied . | . . . . . . Relay Couplers Released . | . . . . . . Fabnet Peak Effective % . | . . . . . . Robots Rewired . | . . . . . . Allies Hacked . | . . . . . . Hacks Repelled . | . . . . . . Allies | -11 -10 -10 -9 -8 -8 -------- Run | Yrd Mat Min Mat Mat Sto Total Allies . | . . . . . . Largest Group . | . . . . . . Highest-Rated Group . | . . . . . . Highest-Rated Ally . | . . . . . . Total Orders . | . . . . . . Ally Attacks . | . . . . . . Total Damage . | . . . . . . Kills . | . . . . . . Allies Corrupted . | . . . . . . Allies Melted . | . . . . . . Intel | -11 -10 -10 -9 -8 -8 ------- Run | Yrd Mat Min Mat Mat Sto Active Infowar (turns) 261 | . . 50 106 61 44 ECM 261 | . . 50 106 61 44 Robot Analysis Total . | . . . . . . Derelict Logs Recovered . | . . . . . . Drone Launches 56 | . . . . . 56 Drone Recoveries 47 | . . . . . 47 Exploration | -11 -10 -10 -9 -8 -8 ------------- Run | Yrd Mat Min Mat Mat Sto Turns Passed 641 | 21 94 66 106 120 234 Spaces Moved 995 | 32 103 156 127 203 374 Core 156 | 32 42 . . . 82 Treads . | . . . . . . Legs . | . . . . . . Wheels . | . . . . . . Hover . | . . . . . . Flight 839 | . 61 156 127 203 292 Fastest Speed 25 | 50 37 37 31 25 29 Average Speed 40 | 50 42 39 31 29 48 Slowest Speed 200 | 50 50 117 34 34 200 Overloaded Moves . | . . . . . . Propulsion Burnouts . | . . . . . . Robots Hopped 17 | . . . 4 6 7 Potential Cave-ins . | . . . . . . Cave-ins Triggered . | . . . . . . Exploration Rate (%) 31 | 3 32 49 19 28 57 Regions Visited 5 Branch Regions 2 Pre-discovered Areas . | . . . . . . Known Exits Taken . | . . . . . . Unknown Exits Taken 5 | 1 1 1 1 1 . Scrap Searched 1 | . . 1 . . . Spaces Dug . | . . . . . . Terrain Destroyed . | . . . . . . Melee . | . . . . . . Projectile . | . . . . . . AOE . | . . . . . . Terrain Rammed . | . . . . . . Walls Destroyed . | . . . . . . Machines Disabled . | . . . . . . Actions | -11 -10 -10 -9 -8 -8 --------- Run | Yrd Mat Min Mat Mat Sto Total 1172 | 36 133 160 170 255 418 Wait 99 | . 2 . 27 50 20 Move 960 | 31 102 155 118 191 363 Hop 13 | . . . 4 5 4 Pick Up 16 | 5 6 1 3 1 . Fast Attach 14 | . 2 1 3 1 7 Attach 20 | . 5 . 4 6 5 Detach 12 | . 3 . 2 1 6 Swap 4 | . . . . . 4 Drop 8 | . 1 3 . . 4 Fire 22 | . 12 . 9 . 1 Melee . | . . . . . . Ram 4 | . . . . . 4 Kick . | . . . . . . Crush . | . . . . . . Escape Stasis . | . . . . . . Rewire . | . . . . . . Trap . | . . . . . . Miscellaneous . | . . . . . . Route ------- -11/Scrapyard -10/Materials -10/Mines -9/Materials (discovered 2 exits: *Mat / Min) -8/Materials -8/Storage History --------- Turn | Location | Event 7 | -11/Scrapyard | Discovered new exit (range 16) 22 | -11/Scrapyard | Entered Materials 75 | -10/Materials | Discovered new exit (range 9) 116 | -10/Materials | Entered Mines 178 | -10/Mines | Discovered new exit (range 12) 182 | -10/Mines | Entered Materials 182 | -9/Materials | Evolved 2 slots: Propulsion x2 199 | -9/Materials | Identified exit to Mines 284 | -9/Materials | Discovered new exit (range 16) 288 | -9/Materials | Entered another Materials area 288 | -8/Materials | Evolved 2 slots: Propulsion x2 398 | -8/Materials | Lost 6 parts (1p4n1u) 407 | -8/Materials | Discovered new exit (range 5) 408 | -8/Materials | Entered Storage 543 | -8/Storage | Lost 3 allies 589 | -8/Storage | Lost 7 parts (1p3n1u2w) 606 | -8/Storage | Core integrity fell below 50% 628 | -8/Storage | Lost 5 allies 633 | -8/Storage | Core integrity fell below 20% 642 | -8/Storage | Destroyed by Y-45 Defender with Beam Rifle Last Messages --------------- G-47 Trooper destroyed. R-06 Scavenger collects Aluminum Leg. Acquired 60 matter. Drone released from Drone Bay. Dropped Drone Bay. >> Lost connection to Drone. Drone destroyed. Flight Unit destroyed. Triggered Proton Bomb Trap. A bubble of electromagnetic force engulfs the area. Critical hit (Burn: +37). K-01 Serf collects debris. Slammed into U-05 Engineer. K-01 Serf collects debris. Critical hit (Burn: +37). Triggered Ambush Trap. B-36 Bruiser emerges from a hatch in the floor. S-10 Pest emerges from a hatch in the floor. Map ----- +----------------------------------------------------+ | | | | | | | | | | | | | | | | | | | | | | | | | ?????????????????????####???????????????????????? | | ??????????????????? #??????????????????????? | | ?????????????????#"""" #?????#????????????????? | | ?????????????????#"""" #???"""#???????????????? | | ?????????????????#"""" #???"G"#???????????????? | | ?????????????????#"""" ####" "#####???????????? | | ?????????????????# # #???????????? | | ?????????????????#[ # ] #????????????? | | ?????????????????# # ##???????????? | | ?????????????????######/## """??????????? | | ?????????????"####### Y # !! R"??????????? | | ?????????????" # !! """??????????? | | ?????????????" b + #????????????? | | ?????????????"#T##### s@# #????????????? | | ????????????????????## s############????????????? | | ????????????????###### #???????????????????????? | | ????????????# + #???????????????????????? | | ????????????#""" # #?##????????????????????? | | ????????????#""" # ##T#????????????????????? | | ????????????#""" ## # "????????????????????? | | ????????????# ## + "????????????????????? | | ????????????# ## # "????????????????????? | | ????????????# ## # #????????????????????? | | ????????????# "T"?## #?##????????????????????? | | ????????????? ???+ #???????????????????????? | | ??????????????#+#????## ###########?????????????? | | ??????????????# #?????# # #?????????????? | | ??????????????# #?????# + """ ??????????????? | | ??????????????# #?????# # "Y" ??????????????? | | ??????????????# #??#### # ???????????????? | | ??????????????# #??# #? !! ??????????????? | | ??????????????# ####+####? !! ??????????????? | | ??????????????# ## #?? ! #?????????????? | | ??????????????# ##= = #?? #?????????????? | | ???????######?# ## #?#+########????????????? | | ???????# #?# ## #?# ## #????????????? | | ???????# #?# ## !### ## #????????????? | | ???????# ### ## ##" ## #????????????? | +----------------------------------------------------+ Best States ------------- Heat Dissipation 31 Energy Generation 14 Energy Capacity 275 Matter Stores 300 Matter Capacity 300 Sight Range 16 Terrain Scan Density 10 ECM Strength 1 Evasion (%) 65 Item Schematics ----------------- None Robot Schematics ------------------ None Fabricated ------------ Nothing Repaired ---------- Nothing Alien Tech Used ----------------- None Achievements -------------- None Challenges ------------ None Game ------ Seed CompanionXenonCasing Manual? 0 Play Time 00:20:36 Cumulative 15.5 hours Start 2025.08.17 @ 12:03:46 End 2025.08.17 @ 12:24:02 Sessions 1 Manual Loads 0 Difficulty Rogue Special Mode None Game No. 31 Rogue 31 Adventurer 0 Explorer 0 Win Type - Total 0 Types 0/0/0/0/0/0/0/0/0/0 Lore% 3 Gallery% 16 Achievement% 19 Wizard Run 0 Options --------- Layout 1 ASCII 1 Keyboard 0 Movement Numpad Keybinds 0 Fullscreen 1 Font 24/Cog Map View 50x35 Zoom Use 0% Tactical HUD 0 Map Filters NONE Filters NONE Steam 0 RUN: 6a8730fb-3b8b-4b6e-8ef9-abb9130e4fe2